Cogmind - Beta 14 @@@ ROGUE MODE // 2024.11.17 @ 12:35:07 Player: Hinzy Result: Self-destructed Performance ------------- Evolutions (2) 1000 Regions Visited (5) 1000 Robots Destroyed (47) 235 Value Destroyed (1489) 1489 Prototype IDs (0) 0 Alien Tech Used (0) 0 Bonus (202) 202 TOTAL SCORE: 3926 Bonus ------- High Alert Combat Kills 2 Entered Garrisons 200 Cogmind --------- Core Integrity 424/550 Matter 300/300 Energy 100/100 System Corruption 0% Temperature Cool (0) Movement Core (350) Ox6 Location -8/Garrison Parts ------- > --- POWER (1) -------- (None) > --- PROPULSION (4) --- (None) > --- UTILITY (4) ------ Heat Sink Heat Sink Medium Storage Unit > --- WEAPON (2) ------- Particle Cannon Heavy Mace > --- INVENTORY (10) --- Ion Engine Medium Matter Pod (100) Relay Coupler [Sentry] (24) Relay Coupler [Sentry] (23) Relay Coupler [Sentry] (25) Relay Coupler [Demolisher] (18) Relay Coupler [Hunter] (14) Particle Cannon Heavy Assault Rifle Peak State ------------ > --- POWER ------------ Improved Ion Engine > --- PROPULSION ------- Light Treads Light Treads Aluminum Leg > --- UTILITY ---------- Cooling System Small Storage Unit Light Armor Plating Tractor Beam > --- WEAPON ----------- Minigun Heavy Mace > --- INVENTORY -------- Ion Engine Heat Sink Heat Sink Medium Matter Pod Light Armor Plating Light Armor Plating Particle Cannon Particle Cannon [Rating: 17] Favorites ----------- Power Ion Engine Engine Ion Engine Propulsion Aluminum Leg Treads Light Treads Leg Aluminum Leg Wheel Wheel Utility Small Storage Unit Device Heat Sink Storage Small Storage Unit Protection Light Armor Plating Weapon Particle Cannon Energy Gun Spread Laser Energy Cannon Particle Cannon Ballistic Gun Heavy Assault Rifle Launcher Rocket Launcher Impact Weapon Heavy Mace Build | -11 -10 -9 -9 -8 -8 ------- Run | Yrd Mat Mat Min Mat Gar Slots Evolved 4 | . . 2 . 2 . Power . | . . . . . . Propulsion 2 | . . 2 . . . Utility 2 | . . . . 2 . Weapon . | . . . . . . Parts Attached 55 | 3 5 27 3 16 1 Power 4 | . . 3 . 1 . Engine 4 | . . 3 . 1 . Core . | . . . . . . Reactor . | . . . . . . Propulsion 21 | 2 2 15 1 1 . Treads 7 | . 1 5 . 1 . Leg 12 | . 1 10 1 . . Wheel 2 | 2 . . . . . Hover . | . . . . . . Flight . | . . . . . . Utility 14 | 1 . 4 1 8 . Device 7 | 1 . 2 1 3 . Storage 1 | . . . . 1 . Processor . | . . . . . . Hackware . | . . . . . . Protection 6 | . . 2 . 4 . Artifact . | . . . . . . Weapon 16 | . 3 5 1 6 1 Energy Gun 4 | . 2 2 . . . Energy Cannon 4 | . . . . 4 . Ballistic Gun 5 | . 1 3 . 1 . Ballistic Cannon . | . . . . . . Launcher 1 | . . . 1 . . Special Weapon . | . . . . . . Impact Weapon 2 | . . . . 1 1 Slashing Weapon . | . . . . . . Piercing Weapon . | . . . . . . Special Melee Weapon . | . . . . . . Unidentified Prototypes . | . . . . . . Parts Lost 22 | . 2 7 3 8 2 Power 1 | . . . . 1 . Propulsion 11 | . . 5 2 3 1 Utility 6 | . 1 . . 4 1 Weapon 4 | . 1 2 1 . . Highest Loss Streak 7 | . 2 7 2 5 2 To Critical Strikes . | . . . . . . Average Slot Usage (%) 82 | . 87 96 88 77 62 Engine 8 | . 14 11 11 7 . Treads 11 | . 9 10 12 14 8 Leg 13 | . 1 31 20 6 . Wheel 1 | . 16 . . . . Device 10 | . 3 3 11 15 18 Storage 9 | . 14 11 11 6 9 Protection 6 | . . 7 . 11 9 Energy Gun 6 | . 21 7 10 . . Energy Cannon 3 | . . . . 8 9 Ballistic Gun 5 | . 5 12 6 2 . Launcher 1 | . . . 4 1 . Impact Weapon 2 | . . . . 3 9 Peak Build Rating 17 | 7 7 12 11 17 12 Average Rating 10 | 6 6 10 10 12 10 On Entrance 8 | 6 7 6 11 9 9 Naked Turns . | . . . . . . Heaviest Build 26 | 15 15 21 19 26 22 Greatest Support 40 | 20 20 40 40 20 20 Greatest Overweight (x) 5 | . 1 5 1 2 1 Average Overweight (x) . | . . . . . 1 Largest Inventory Capacity 10 | 8 8 8 8 10 10 Average Capacity 8 | 8 8 8 8 7 10 Most Carried 9 | 6 8 8 7 8 9 Average Carried 5 | 5 6 5 5 5 6 Final Capacity 10 | 8 8 8 8 10 10 Final Carried 9 | 6 7 5 7 4 9 Class Distribution -------------------- 51% | Scavenger-Mutant 48% | Mutant Dominant Class ---------------- Mutant | -10/Materials Mutant | -9/Materials Scavenger-Mutant | -9/Mines Scavenger-Mutant | -8/Materials Mutant | -8/Garrison Resources | -11 -10 -9 -9 -8 -8 ----------- Run | Yrd Mat Mat Min Mat Gar Matter Collected 1275 | 200 74 398 198 405 . Remotely 194 | . . . . 194 . Salvage Created 1379 | 130 153 389 193 465 49 Parts 89 | 7 13 27 13 26 3 Haulers Intercepted 1 | . . . . 1 . Recyclers Shooed 3 | . 2 . . 1 . Parts Field Recycled . | . . . . . . Retrieved Matter . | . . . . . . Parts Self-Destructed . | . . . . . . Prevented . | . . . . . . Kills | -11 -10 -9 -9 -8 -8 ------- Run | Yrd Mat Mat Min Mat Gar Combat Hostiles Destroyed 34 | . 4 8 9 12 1 Melee 2 | . . . . 1 1 Guns 21 | . 4 8 3 6 . Cannons 3 | . . . . 3 . AOE 7 | . . . 6 1 . Classes Destroyed 9 | 2 1 4 . 2 . Worker 1 | . . 1 . . . Tunneler 3 | 2 . . 1 . . Hauler 1 | . . . . 1 . Recycler 2 | 1 . 1 . . . Watcher 6 | . . 2 . 4 . Swarmer 11 | . . 1 3 7 . Grunt 13 | . 4 2 6 . 1 Sentry 9 | . . 5 . 4 . Hunter 1 | . . . . 1 . Best Kill Streak 7 | 3 2 5 4 7 1 Combat Bots Only 7 | . 2 1 3 7 1 Max Kills in Single Turn 3 | 2 1 2 2 3 1 Gunslinging . | . . . . . . Exploded 2 | . . . 2 1 . Melee 1 | . . . . 1 1 Uniques/NPCs Destroyed . | . . . . . . Combat | -11 -10 -9 -9 -8 -8 -------- Run | Yrd Mat Mat Min Mat Gar Hostile Shots Fired 367 | . 21 178 14 141 13 Missed 98 | . 3 49 2 40 4 Damage Taken 3343 | . 219 1732 231 1076 85 Core 370 | . 46 163 35 80 46 Absorbed by Shields . | . . . . . . Core Remaining (%) 77 | 100 81 . 50 . . Volleys Fired 136 | 3 23 46 17 47 . Largest 2 | 2 2 2 2 2 . Hottest 136 | 80 80 88 88 136 . Shots Fired 209 | 6 40 80 28 55 . Gun 177 | 6 40 80 22 29 . Cannon 20 | . . . . 20 . Launcher 12 | . . . 6 6 . Special . | . . . . . . Kinetic 100 | . 6 54 11 29 . Thermal 66 | . 9 26 11 20 . Explosive 12 | . . . 6 6 . Electromagnetic 31 | 6 25 . . . . Robot Hit Streak 22 | 2 6 22 8 6 . Robot Miss Streak 6 | 1 3 6 4 3 . Penetration Max . | . . . . . . Secondary Targets 1 | . . 1 . . . Max Gunslinging Chain 1 | . . 1 . . . Shots Hit Robots 155 | 3 25 68 19 39 1 Core Hits 98 | 3 8 42 22 22 1 Critical Kills 1 | . . . . 1 . Critical Parts Destroyed 2 | . . 1 . 1 . Critical Strikes 4 | . 1 1 . 2 . Destroy 2 | . . 1 . 1 . Corrupt 1 | . 1 . . . . Smash 1 | . . . . 1 . Melee Attacks 31 | . . . . 15 16 Impact 31 | . . . . 15 16 Slashing . | . . . . . . Piercing . | . . . . . . Sneak Attacks . | . . . . . . Combat Hostiles . | . . . . . . Follow-up Attacks . | . . . . . . Damage Inflicted 3098 | 51 320 1022 625 1047 33 Guns 1962 | 51 315 1022 231 343 . Cannons 285 | . . . . 285 . Explosions 648 | . . . 394 254 . Melee 198 | . . . . 165 33 Ramming 5 | . 5 . . . . Kinetic 1111 | . 53 605 110 343 . Thermal 896 | . 73 417 121 285 . Explosive 648 | . . . 394 254 . Electromagnetic 240 | 51 189 . . . . Impact 198 | . . . . 165 33 Slashing . | . . . . . . Piercing . | . . . . . . Highest Corruption . | . . . . . . Average Corruption . | . . . . . . Corruption Purged . | . . . . . . Corruption Blocked . | . . . . . . Overload Shots . | . . . . . . Overflow Damage 97 | . . . 8 89 . Projectiles . | . . . . . . Explosions 30 | . . . 8 22 . Melee 67 | . . . . 67 . Knockbacks 2 | . . . . 2 . Impact 2 | . . . . 2 . Kinetic . | . . . . . . Secondary . | . . . . . . Self-Inflicted Damage 138 | . 2 . 79 57 . Shots 5 | . . . 3 2 . Rammed 1 | . 1 . . . . Targets Rammed 1 | . 1 . . . . Kicked . | . . . . . . Crushed . | . . . . . . Highest Temperature 228 | 54 228 164 9 144 . Average Temperature 58 | 29 92 53 3 45 . Received Heat Transfer 1002 | . 114 606 84 180 18 Effects 1 | . 1 . . . . Energy Bleed 1 | . 1 . . . . Siege Activations . | . . . . . . Robots Corrupted 1 | . . . . 1 . Combat Hostiles 1 | . . . . 1 . Parts Fried 3 | . 2 . . 1 . Impact Corruptions 3 | . . . . 3 . Robots Melted . | . . . . . . Combat Hostiles . | . . . . . . Parts Melted 4 | . . . 1 3 . Heat Transferred 1378 | . 175 530 155 518 . Parts Sabotaged . | . . . . . . Parts Stolen . | . . . . . . Parts Stripped . | . . . . . . Power Chain Reactions . | . . . . . . Alert | -11 -10 -9 -9 -8 -8 ------- Run | Yrd Mat Mat Min Mat Gar Peak Influence 412 | 15 154 300 210 412 312 Initial 217 | . 9 65 44 37 217 Average 155 | 3 90 172 62 218 245 Maximum Alert Level 2 | . . 1 1 2 1 Low Security (%) 53 | 100 100 46 99 21 . Level 1 46 | . . 53 . 76 100 Level 2 . | . . . . 2 . Level 3 . | . . . . . . Level 4 . | . . . . . . Level 5 . | . . . . . . High Security . | . . . . . . Max Security . | . . . . . . Squads Dispatched 9 | . 3 3 . 3 . Investigation 3 | . 2 1 . . . Extermination . | . . . . . . Reinforcement 3 | . 1 2 . . . Assault . | . . . . . . Garrison 3 | . . . . 3 . Intercept . | . . . . . . Searches Triggered . | . . . . . . Construction Impeded . | . . . . . . Haulers Reinforced . | . . . . . . Active Scanning Responses . | . . . . . . Cargo Convoy Interrupts . | . . . . . . Stealth | -11 -10 -9 -9 -8 -8 --------- Run | Yrd Mat Mat Min Mat Gar Distress Signals 7 | . 2 4 . 1 . Communications Jammed . | . . . . . . Distress Signals . | . . . . . . Times Spotted 70 | . 10 21 9 23 7 Peak Tracking Total 9 | . 4 9 3 5 7 Tactical Retreats 5 | . 2 . . 3 . Traps | -11 -10 -9 -9 -8 -8 ------- Run | Yrd Mat Mat Min Mat Gar Traps Triggered 2 | . 1 1 . . . Indirectly . | . . . . . . Trap Hack Attempts . | . . . . . . Triggered . | . . . . . . Disarmed . | . . . . . . Reprogrammed . | . . . . . . Reused . | . . . . . . Traps Extracted . | . . . . . . Installed . | . . . . . . Triggered . | . . . . . . Machines | -11 -10 -9 -9 -8 -8 ---------- Run | Yrd Mat Mat Min Mat Gar Machines Disabled 8 | . 1 . 2 4 1 Max in Single Turn 1 | . 1 . 1 1 1 Garrison Relay 1 | . . . . . 1 Machines Repaired . | . . . . . . Machines Dismantled . | . . . . . . Machines Sabotaged . | . . . . . . Overloaded Fab Kills . | . . . . . . Hacking | -11 -10 -9 -9 -8 -8 --------- Run | Yrd Mat Mat Min Mat Gar Machines Accessed 4 | . 2 . . 1 1 Terminals 3 | . 2 . . . 1 Fabricators . | . . . . . . Repair Stations . | . . . . . . Recycling Units . | . . . . . . Scanalyzers . | . . . . . . Garrison Access 1 | . . . . 1 . Total Hacks 5 | . 2 . . 1 2 Successful 2 | . 1 . . 1 . Failed 3 | . 1 . . . 2 Catastrophic 1 | . 1 . . . . Database Lockouts . | . . . . . . Manual 2 | . 2 . . . . Terminals 4 | . 2 . . . 2 Fabricators . | . . . . . . Repair Stations . | . . . . . . Recycling Units . | . . . . . . Scanalyzers . | . . . . . . Garrison Access 1 | . . . . 1 . Terminal Hacks 1 | . 1 . . . . Emergency Access Points 1 | . 1 . . . . Fabricator Hacks . | . . . . . . Repair Station Hacks . | . . . . . . Recycling Unit Hacks . | . . . . . . Scanalyzer . | . . . . . . Garrison Access Hacks 1 | . . . . 1 . Unlock Access 1 | . . . . 1 . Unauthorized Hacks . | . . . . . . Terminals . | . . . . . . Fabricators . | . . . . . . Repair Stations . | . . . . . . Recycling Units . | . . . . . . Scanalyzers . | . . . . . . Garrison Access . | . . . . . . Data Cores Recovered . | . . . . . . Used . | . . . . . . Hacking Detections 3 | . 1 . . 1 1 Full Trace Events 1 | . 1 . . . . Feedback Events . | . . . . . . Feedback Blocked . | . . . . . . Robot Schematics Acquired . | . . . . . . Robots Built . | . . . . . . Authchips . | . . . . . . Time . | . . . . . . Total Robot Build Rating . | . . . . . . Part Schematics Acquired . | . . . . . . Parts Built . | . . . . . . Authchips . | . . . . . . Time . | . . . . . . Total Part Build Rating . | . . . . . . Parts Repaired . | . . . . . . Time . | . . . . . . Parts Recycled . | . . . . . . Recycled Matter . | . . . . . . Retrieved Matter . | . . . . . . Retrieved Components . | . . . . . . Parts Scanalyzed . | . . . . . . Part Schematics Acquired . | . . . . . . Parts Damaged . | . . . . . . Bothacking | -11 -10 -9 -9 -8 -8 ------------ Run | Yrd Mat Mat Min Mat Gar Used RIF Installer . | . . . . . . Robots Hacked . | . . . . . . Non-combat . | . . . . . . Combat . | . . . . . . Robot Hacks Applied . | . . . . . . Relay Couplers Released 5 | . . . . . 5 Machine Destruction 5 | . . . . . 5 Fabnet Peak Effective % . | . . . . . . Robots Rewired . | . . . . . . Allies Hacked . | . . . . . . Hacks Repelled . | . . . . . . Allies | -11 -10 -9 -9 -8 -8 -------- Run | Yrd Mat Mat Min Mat Gar Total Allies . | . . . . . . Largest Group . | . . . . . . Highest-Rated Group . | . . . . . . Highest-Rated Ally . | . . . . . . Total Orders . | . . . . . . Ally Attacks . | . . . . . . Total Damage . | . . . . . . Kills . | . . . . . . Allies Corrupted . | . . . . . . Allies Melted . | . . . . . . Intel | -11 -10 -9 -9 -8 -8 ------- Run | Yrd Mat Mat Min Mat Gar Robot Analysis Total . | . . . . . . Derelict Logs Recovered 1 | . . . 1 . . Drone Launches . | . . . . . . Drone Recoveries . | . . . . . . Exploration | -11 -10 -9 -9 -8 -8 ------------- Run | Yrd Mat Mat Min Mat Gar Turns Passed 2399 | 69 266 469 586 615 394 Spaces Moved 957 | 4 145 183 280 202 143 Core 2 | . . 2 . . . Treads 418 | . 21 63 52 139 143 Legs 412 | 3 . 118 228 63 . Wheels 125 | 1 124 . . . . Hover . | . . . . . . Flight . | . . . . . . Fastest Speed 80 | 80 80 120 160 160 240 Average Speed 176 | 110 99 136 184 214 240 Slowest Speed 300 | 120 160 300 190 260 240 Overloaded Moves . | . . . . . . Propulsion Burnouts . | . . . . . . Robots Hopped . | . . . . . . Cave-ins Triggered . | . . . . . . Exploration Rate (%) 26 | 2 25 20 67 20 26 Regions Visited 5 Branch Regions 1 Pre-discovered Areas 1 | . . . 1 . . Known Exits Taken 1 | . . . . 1 . Unknown Exits Taken 4 | 1 1 1 1 . . Scrap Searched 2 | . . . 2 . . Spaces Dug 13 | . . . . 7 6 Terrain Destroyed 105 | . . . 45 54 6 Melee 13 | . . . . 7 6 Projectile . | . . . . . . AOE 92 | . . . 45 47 . Terrain Rammed . | . . . . . . Walls Destroyed . | . . . . . . Machines Disabled . | . . . . . . Actions | -11 -10 -9 -9 -8 -8 --------- Run | Yrd Mat Mat Min Mat Gar Total 1400 | 61 227 319 322 306 165 Wait 173 | 50 48 45 19 11 . Move 953 | 3 144 182 279 202 143 Hop . | . . . . . . Pick Up 26 | 1 2 8 2 8 5 Fast Attach 15 | 1 3 5 2 4 . Attach 15 | . 1 8 . 6 . Detach 1 | . . . . 1 . Swap 25 | 2 1 14 1 6 1 Drop 24 | 1 4 11 2 6 . Fire 136 | 3 23 46 17 47 . Melee 31 | . . . . 15 16 Ram 1 | . 1 . . . . Kick . | . . . . . . Crush . | . . . . . . Escape Stasis . | . . . . . . Rewire . | . . . . . . Trap . | . . . . . . Miscellaneous . | . . . . . . Route ------- -11/Scrapyard -10/Materials -9/Materials -9/Mines (discovered 2 exits: *Mat x2) -8/Materials -8/Garrison History --------- Turn | Location | Event 1 | -11/Scrapyard | Discovered new exit (range 2) 70 | -11/Scrapyard | Entered Materials 166 | -10/Materials | Discovered new exit (range 12) 336 | -10/Materials | Entered another Materials area 336 | -9/Materials | Evolved 2 slots: Propulsion x2 372 | -9/Materials | Build established: Mutant 679 | -9/Materials | Discovered new exit (range 8) 710 | -9/Materials | Lost 7 parts (5n2w) 805 | -9/Materials | Entered Mines 914 | -9/Mines | Discovered new exit (range 6) 959 | -9/Mines | Build established: Scavenger-Mutant 1117 | -9/Mines | Learned location of Storage (-7) 1134 | -9/Mines | Received a Rocket Launcher from a helpful Derelict 1353 | -9/Mines | Discovered new exit (range 5) 1391 | -9/Mines | Entered Materials 1391 | -8/Materials | Evolved 2 slots: Utility x2 1713 | -8/Materials | Garrison activated, responded to threat 1786 | -8/Materials | Lost 5 parts (1n4u) 1799 | -8/Materials | Destroyed 7 combat bots 2006 | -8/Materials | Identified exit to Garrison 2006 | -8/Materials | Entered Garrison 2194 | -8/Garrison | Triggered checkpoint 2217 | -8/Garrison | Build established: Mutant 2224 | -8/Garrison | Garrison Relay disabled 2392 | -8/Garrison | Triggered checkpoint 2400 | -8/Garrison | Self-destructed Last Messages --------------- >>Unlock Access door unlocked. 02006_ EXIT=UNLOCKED: GARRISON LOCATION=GARRISON GOAL=ESCAPE 02030_ Connecting with Door Terminal... 02224_ Garrison Relay disabled. 02224_ Relay Coupler [Sentry] tumbles out of relay unit. 02224_ Relay Coupler [Hunter] tumbles out of relay unit. 02224_ Relay Coupler [Demolisher] tumbles out of relay unit. 02229_ Acquired Relay Coupler [Demolisher]. 02233_ Acquired Relay Coupler [Sentry]. 02236_ Acquired Relay Coupler [Hunter]. 02239_ Acquired Relay Coupler [Sentry]. 02397_ G-47 Trooper destroyed. 02398_ Lgt. Treads destroyed. 02400_ Lgt. Armor Plating destroyed. Map ----- +----------------------------------------------------+ | ?????????????????????????????????????????????????? | | ?????????????????????????????????????????????????? | | ?????????????????????????????????????????????????? | | ?????????????????????????????????????????????????? | | ?????????????????????????????????????????????????? | | ?????????????????????????????????????????????????? | | ?????????????????????????????????????????????????? | | ?????????????????????????????????????????????????? | | ?????????????????????????????????????????????????? | | ?????????????????????????????????????????????????? | | ?????????????????????????????????????????????????? | | ?????????????????????## ????????????????????????? | | ?????????????????????# ??????? ????????????????? | | ????????????????????? ?????? ?????????????????? | | ????????????????????? ?????? ?? #????????????? | | ?????????????????????# ????? #? #????????????? | | ?????????????????????# #???? ## #????????????? | | ?????????????????????" ??? "????????????? | | ?????????????????????" ??? ??????????????? | | ?????????????????????" ?? ???????????????? | | ?????????????????????" ^ ?? ????????????????? | | ?????????????????????#^ #? #????#????????????? | | ?????????????????????# ## ## #????????????? | | ?????????????????????# ss #????????????? | | ?????????????????????# = s #????????????? | | ?????????????????????# @%* s #????????????? | | ?????????????????????# ## gg ## #?????????????? | | ?????????????????????# #??? #?????????????????? | | ?????????????????????# #?????#?????????????????? | | ?????????????????????# #???????????????????????? | | ?????????????????????# #???????????????????????? | | ?????????????????????# #???????????????????????? | | ?????????????????????# #???????????????????????? | | ###################### #???????????????????????? | | # #???????????????????????? | | # #???????????????????????? | | # #???????????????????????? | | # ######################???????????????????????? | | # #????????????????????????????????????????????? | | # #????????????????????????????????????????????? | | # #????????????????????????????????????????????? | | # #????????????????????????????????????????????? | | # #????????????????????????????????????????????? | | # #????????????????????????????????????????????? | | # #????????????????????????????????????????????? | | # #????????????????????????????????????????????? | | # #????????????????????????????????????????????? | | # #????????????????????????????????????????????? | | # #????????????????????????????????????????????? | | # #????????????????????????????????????????????? | +----------------------------------------------------+ Best States ------------- Heat Dissipation 53 Energy Generation 12 Energy Capacity 265 Matter Stores 300 Matter Capacity 300 Sight Range 16 Terrain Scan Density 10 Armor Coverage 300 Evasion (%) 55 Recoil Reduction 2 Item Schematics ----------------- None Robot Schematics ------------------ None Fabricated ------------ Nothing Alien Tech Used ----------------- None Achievements -------------- None Challenges ------------ None Game ------ Seed JunkSensorRouter Manual? 0 Play Time 00:19:20 Cumulative 69.6 hours Start 2024.11.17 @ 12:17:26 End 2024.11.17 @ 12:35:07 Sessions 1 Manual Loads 0 Difficulty Rogue Special Mode None Game No. 49 Rogue 49 Adventurer 0 Explorer 0 Win Type - Total 0 Types 0/0/0/0/0/0/0/0/0 Lore% 41 Gallery% 44 Achievement% 33 Wizard Run 0 Options --------- Layout 2 ASCII 0 Keyboard 0 Movement Mouse Keybinds 0 Fullscreen 1 Font 24/Smallcaps Map View 50x44 Zoom Use 0% Tactical HUD 1 Map Filters NONE Filters NONE Steam 1 RUN: 4338efc7-353f-4de0-8ce5-2c28b51cd55f